bitfinex-derivatives/quotes_ETHF0:USTF0_20241013
["timestamp","ask_amount","ask_price","bid_price","bid_amount"]
[1728817771583,10.5700088,2467.1,2467.0,1.06362315]
[1728817772288,10.5700088,2467.1,2466.9,1.06362315]
[1728817775986,10.5700088,2467.1,2466.9,1.47482315]
[1728817780184,3.2078,2467.0,2466.9,1.47482315]
[1728817780491,3.2078,2467.0,2466.9,2.66172435]
[1728817780681,9.1041,2467.0,2466.9,2.66172435]
[1728817781291,9.1041,2467.0,2466.9,3.06322435]
[1728817781885,9.1041,2467.0,2466.9,1.9996012]
[1728817782091,9.1041,2467.0,2466.9,3.06184198]
[1728817782596,9.1041,2467.0,2466.9,1.9996012]
[1728817782896,9.1041,2467.0,2466.9,3.59470936]
[1728817783095,9.1041,2467.0,2466.9,3.06182415]
[1728817784191,5.8963,2467.0,2466.9,3.06182415]
[1728817785595,5.8963,2467.0,2466.9,1.87492295]
[1728817787594,5.8963,2467.0,2466.9,1.47342295]
[1728817788500,5.8963,2467.0,2466.9,1.06222295]
[1728817788796,9.9499,2467.0,2466.7,1.06222295]
[1728817788990,3.2078,2466.8,2466.7,1.06222295]
[1728817789388,9.1041,2466.8,2466.7,1.06222295]
[1728817790390,9.1041,2466.8,2466.6,1.45882295]
[1728817790592,9.1041,2466.8,2466.7,1.06222295]
[1728817790792,9.1041,2466.8,2466.6,1.45882295]
[1728817790998,5.8963,2466.8,2466.7,1.06222295]
[1728817791193,5.8963,2466.8,2466.6,1.45882295]
[1728817791700,5.8963,2466.8,2466.7,1.06222295]
[1728817791901,5.8963,2466.8,2466.6,1.45882295]
[1728817796402,5.8963,2466.8,2466.7,1.06222295]
[1728817796603,5.8963,2466.8,2466.7,1.47042295]
[1728817797103,5.8963,2466.8,2466.7,2.65688992]
[1728817797308,3.2078,2466.9,2466.7,3.18977513]
[1728817797499,9.1041,2466.9,2466.8,1.47745488]
[1728817799113,5.8963,2466.9,2466.8,1.47745488]
[1728817801310,5.8963,2466.9,2466.8,2.66448863]
[1728817802303,5.8963,2466.9,2466.8,1.60253375]
[1728817802504,5.8963,2466.9,2466.8,3.19764191]
[1728817802704,5.8963,2466.9,2466.8,1.92133422]
[1728817802905,5.8963,2466.9,2466.8,2.42832959]
[1728817803304,5.8963,2466.9,2466.8,4.55595909]
[1728817803914,5.8963,2466.9,2466.8,2.42832959]
[1728817804312,5.8963,2466.9,2466.8,4.55595909]
[1728817804506,5.8963,2466.9,2466.8,3.36892534]
[1728817804715,5.8963,2466.9,2466.8,4.55644474]
[1728817805415,6.294,2466.9,2466.8,4.55644474]
[1728817806206,6.294,2466.9,2466.8,3.85739859]
[1728817806407,6.294,2466.9,2466.8,4.55652137]
[1728817807113,6.294,2466.9,2466.8,2.01339187]
[1728817808117,6.294,2466.9,2466.8,1.50638762]
[1728817808316,6.294,2466.9,2466.8,2.01341252]
[1728817809219,6.294,2466.9,2466.8,2.01341118]
[1728817809521,7.35304382,2466.9,2466.8,2.01341118]
[1728817809722,7.35304382,2466.9,2466.8,2.01341782]
[1728817809919,11.40664382,2466.9,2466.8,1.1875194]
[1728817810111,10.3476,2466.9,2466.8,1.57063697]
[1728817810315,18.46895408,2466.9,2466.7,1.06361356]
[1728817810515,7.2614,2466.8,2466.7,1.06361356]
[1728817810722,7.2614,2466.8,2466.6,1.06361356]
[1728817810927,1.5902341,2466.7,2466.6,1.06361356]
[1728817811423,7.4865341,2466.7,2466.6,1.06361356]
[1728817812417,7.4865341,2466.7,2466.5,1.06361356]
[1728817812618,2.27611635,2466.6,2466.5,1.06361356]
[1728817812830,2.27611635,2466.6,2466.5,2.78333251]
[1728817813130,8.17241635,2466.6,2466.5,2.78333251]
[1728817813323,8.17241635,2466.6,2466.5,2.2511756]
[1728817813827,8.17241635,2466.6,2466.4,1.59538642]
[1728817813828,12.7572341,2466.6,2466.4,1.06322951]
[1728817814023,3.2078,2466.5,2466.4,1.06322951]
[1728817814230,4.7980341,2466.5,2466.3,1.06322951]
[1728817814422,1.0595967,2466.4,2466.3,1.06322951]
[1728817814618,1.0595967,2466.4,2466.2,1.59538642]
[1728817814619,1.5902341,2466.4,2466.2,1.06322951]
[1728817814819,0.3976,2466.3,2466.1,1.06322951]
[1728817815026,5.09364421,2466.2,2466.0,1.06322951]
[1728817815427,10.98994421,2466.2,2466.0,1.06322951]
[1728817816428,10.98994421,2466.2,2465.8,2.30472951]
[1728817816830,10.98994421,2466.2,2465.9,1.06322951]
[1728817817025,9.9307,2466.2,2465.9,1.06322951]
[1728817817429,9.9307,2466.2,2465.8,2.30472951]
[1728817820428,9.9307,2466.2,2465.8,1.2415]
[1728817823029,9.9307,2466.2,2465.8,2.30472951]
[1728817826531,6.7229,2466.2,2465.8,2.30472951]
[1728817826737,9.9307,2466.2,2465.8,2.30472951]
[1728817827838,6.7229,2466.2,2465.8,2.30472951]
[1728817828342,9.9307,2466.2,2465.8,2.30472951]
[1728817828527,9.9307,2466.2,2465.8,1.2415]
[1728817828833,6.7229,2466.2,2465.8,1.2415]
[1728817829041,9.9307,2466.2,2465.8,1.2415]
[1728817829433,6.7229,2466.2,2465.8,1.2415]
[1728817829832,9.9307,2466.2,2465.8,1.2415]
[1728817831739,9.9307,2466.2,2465.8,2.30472951]
[1728817835040,6.7229,2466.2,2465.8,2.30472951]
[1728817835834,9.9307,2466.2,2465.8,2.30472951]
[1728817836032,9.5071,2466.2,2465.8,2.30472951]
[1728817840744,6.2993,2466.2,2465.8,2.30472951]
[1728817841341,9.9276,2466.2,2465.8,2.30472951]
[1728817843749,6.7198,2466.2,2465.8,2.30472951]
[1728817843948,9.9276,2466.2,2465.8,2.30472951]
[1728817846250,6.7198,2466.2,2465.8,2.30472951]
[1728817846445,9.9276,2466.2,2465.8,2.30472951]
[1728817846951,9.9276,2466.2,2465.8,1.06322951]
[1728817847358,9.9276,2466.2,2465.7,1.06322951]
[1728817847948,9.9276,2466.2,2465.8,1.06322951]
[1728817848349,9.9276,2466.2,2465.7,1.06322951]
[1728817848546,9.9276,2466.2,2465.8,1.06322951]
[1728817851448,9.9276,2466.2,2465.9,1.06322951]
[1728817851750,9.9276,2466.2,2465.8,1.06322951]
[1728817851953,9.9276,2466.2,2465.9,1.06322951]
[1728817853050,10.98684421,2466.2,2465.9,1.06322951]
[1728817853257,15.04204421,2466.2,2465.8,1.06322951]
[1728817853453,3.2078,2465.9,2465.8,1.06322951]
[1728817853657,3.2078,2465.9,2465.7,1.06322951]
[1728817853960,1.2106,2465.8,2465.7,1.06322951]
[1728817854253,1.2106,2465.8,2465.7,2.25015501]
[1728817854459,7.1069,2465.8,2465.7,1.18729596]
[1728817855555,7.1069,2465.8,2465.7,2.78268249]
[1728817858453,12.22134421,2465.8,2465.7,2.25076046]
[1728817858661,12.22134421,2465.8,2465.7,1.06346439]
[1728817859457,3.33195408,2465.8,2465.4,1.59548654]
[1728817859756,4.2672833,2465.5,2465.2,2.12725237]
[1728817859959,0.8099,2465.4,2465.3,1.98668191]
[1728817860160,0.8099,2465.4,2465.3,1.98668305]
[1728817860365,0.7099,2465.4,2465.3,1.98668305]
[1728817860657,0.6099,2465.4,2465.3,1.98668305]
[1728817860850,0.6099,2465.4,2465.3,1.35251573]
[1728817861056,0.6099,2465.4,2465.3,1.98668148]
[1728817861257,0.6099,2465.4,2465.3,1.16079963]
[1728817861554,0.6099,2465.4,2465.3,1.98668858]
[1728817861747,0.6099,2465.4,2465.3,1.35252255]
[1728817862367,0.6099,2465.4,2465.3,1.16079963]
[1728817862552,0.9945,2465.4,2465.3,1.16079963]
[1728817863257,0.9945,2465.4,2465.3,1.15954866]
[1728817864255,0.9945,2465.4,2465.0,0.3927]
[1728817864460,0.9945,2465.4,2465.1,1.98496988]
[1728817864758,0.9945,2465.4,2465.0,0.3927]
[1728817864759,0.9945,2465.4,2465.2,1.1593095]
[1728817864963,0.9945,2465.4,2465.0,0.3927]
[1728817865169,0.9945,2465.4,2465.1,1.98493517]
[1728817865357,0.9945,2465.4,2465.2,1.15927516]
[1728817865558,0.9945,2465.4,2465.0,0.3927]
[1728817865860,0.9945,2465.4,2465.1,1.98468321]
[1728817866163,3.2078,2465.2,2464.8,0.4056]
[1728817866360,0.3908,2465.1,2464.8,0.4056]
[1728817866658,0.8141,2465.0,2464.7,0.3904]
[1728817866858,0.8141,2465.0,2464.5,3.2078]
[1728817867058,0.8141,2465.0,2464.6,1.15883073]
[1728817867265,0.8141,2465.0,2464.5,3.6276]
[1728817870059,0.8141,2465.0,2464.5,0.4198]
[1728817870260,4.0219,2465.0,2464.5,0.4198]
[1728817871758,0.8141,2465.0,2464.5,0.4198]
[1728817872069,4.0219,2465.0,2464.5,0.4198]
[1728817873162,3.6067,2465.0,2464.5,0.4198]
[1728817882169,3.6067,2465.0,2464.4,3.2078]
[1728817882374,3.6067,2465.0,2464.5,0.3821]
[1728817883681,3.6067,2465.0,2464.6,0.7921]
[1728817887276,3.2078,2464.9,2464.6,0.7921]
[1728817888476,0.3989,2465.0,2464.6,0.7921]
[1728817888672,3.2078,2464.9,2464.6,0.7921]
[1728817889481,0.3989,2465.0,2464.6,0.7921]
[1728817889772,3.2078,2464.9,2464.6,0.7921]
[1728817890272,0.3989,2465.0,2464.6,0.7921]
[1728817890475,3.2078,2464.9,2464.6,0.7921]
[1728817892578,0.3989,2465.0,2464.6,0.7921]
[1728817892780,3.2078,2464.9,2464.6,0.7921]
[1728817892975,0.3989,2465.0,2464.6,0.7921]
[1728817893177,3.2078,2464.9,2464.6,0.7921]
[1728817893580,0.3989,2465.0,2464.6,0.7921]
[1728817893772,3.2078,2464.9,2464.6,0.7921]
[1728817897484,0.3989,2465.0,2464.6,0.7921]
[1728817897982,3.2078,2464.9,2464.6,0.7921]
[1728817903478,0.3989,2465.0,2464.6,0.7921]
[1728817903685,3.2078,2464.9,2464.6,0.7921]
[1728817904680,1.4583833,2465.0,2464.6,0.7921]
[1728817904882,3.2078,2464.9,2464.5,0.3821]
[1728817905187,3.2078,2464.9,2464.6,1.15932091]
[1728817905386,3.2078,2464.9,2464.5,0.3821]
[1728817905582,3.2078,2464.9,2464.6,1.15961809]
[1728817905783,3.2078,2464.9,2464.5,0.3821]
[1728817906083,3.2078,2464.9,2464.6,1.15961938]
[1728817906293,3.2078,2464.9,2464.5,0.3821]
[1728817906488,3.2078,2464.9,2464.6,1.15964483]
[1728817906787,3.2078,2464.9,2464.5,0.3821]
[1728817906981,3.2078,2464.9,2464.6,1.15964487]
[1728817907285,4.2672833,2464.9,2464.5,0.3821]
[1728817907486,4.2672833,2464.9,2464.6,1.1598954]
[1728817907792,4.2672833,2464.9,2464.5,0.3821]
[1728817907980,4.2672833,2464.9,2464.6,1.15989557]
[1728817908288,4.2672833,2464.9,2464.7,1.16018859]
[1728817908585,4.2672833,2464.9,2464.5,2.49946972]
[1728817908901,4.2672833,2464.9,2464.6,1.47785089]
[1728817909187,4.2672833,2464.9,2464.5,2.49946972]
[1728817909188,4.2672833,2464.9,2464.7,1.16018818]
[1728817909485,4.2672833,2464.9,2464.5,2.49946972]
[1728817909690,4.2672833,2464.9,2464.6,1.9857003]
[1728817909884,4.2672833,2464.9,2464.7,1.16051955]
[1728817910096,4.2672833,2464.9,2464.6,2.11736972]
[1728817910097,1.0594833,2464.8,2464.6,2.11736972]
[1728817910387,1.0594833,2464.8,2464.7,1.35185506]
[1728817910886,1.0594833,2464.8,2464.7,1.35185295]
[1728817911281,1.0594833,2464.8,2464.7,1.98618276]
[1728817911988,1.58922495,2464.9,2464.7,1.98618276]
[1728817912179,1.58922495,2464.9,2464.6,2.11736972]
[1728817912180,3.2078,2464.9,2464.8,1.1609357]
[1728817913589,2.52025408,2465.0,2464.8,1.1609357]
[1728817913890,3.2078,2464.9,2464.6,2.11736972]
[1728817914091,1.05964118,2464.7,2464.6,2.11736972]
[1728817914295,1.05964118,2464.7,2464.6,6.73392093]
[1728817914901,1.44894118,2464.7,2464.6,6.73392093]
[1728817915090,1.83044118,2464.7,2464.6,6.73392093]
[1728817916697,1.83044118,2464.7,2464.6,6.09960122]
[1728817916988,1.83044118,2464.7,2464.6,5.72964513]
[1728817917193,1.83044118,2464.7,2464.6,6.7339366]
[1728817918995,1.83044118,2464.7,2464.6,6.73405208]
[1728817919391,1.44894118,2464.7,2464.6,6.73405208]
[1728817920490,1.44894118,2464.7,2464.6,6.11036229]
[1728817920691,1.44894118,2464.7,2464.6,5.60289339]
[1728817920892,1.05964118,2464.7,2464.6,6.73406323]
[1728817921084,1.05964118,2464.8,2464.6,4.61669351]
[1728817921287,1.05964118,2464.8,2464.7,4.83130462]
[1728817921496,1.05964118,2464.8,2464.7,7.15500561]
[1728817923493,1.05964118,2464.8,2464.7,6.65818626]
[1728817923697,1.05964118,2464.8,2464.7,7.15495742]
[1728817926895,1.05964118,2464.8,2464.7,7.15515427]
[1728817927299,1.05964118,2464.8,2464.7,6.84940914]
[1728817927494,1.58946177,2464.8,2464.7,4.20766172]
[1728817927693,1.58946177,2464.8,2464.7,4.01816946]
[1728817927894,1.58946177,2464.8,2464.7,3.70022297]
[1728817928092,1.58946177,2464.8,2464.7,7.66307674]
[1728817928293,1.05998533,2464.8,2464.7,7.66307674]
[1728817929290,1.05998533,2464.8,2464.7,7.15615653]
[1728817929497,1.05998533,2464.8,2464.7,5.02561594]
[1728817931493,1.05998533,2464.8,2464.7,4.89886754]
[1728817931691,1.05998533,2464.8,2464.7,5.02572119]
[1728817932494,1.05998533,2464.8,2464.7,7.15612193]
[1728817932695,1.05998533,2464.8,2464.7,5.02572119]
[1728817932901,1.05998533,2464.8,2464.7,7.15611802]
[1728817933102,1.05998533,2464.8,2464.7,5.02572119]
[1728817933293,1.05998533,2464.8,2464.7,7.15607668]
[1728817935195,1.05998533,2464.8,2464.7,5.02572119]
[1728817935398,1.05998533,2464.8,2464.7,6.15170659]
[1728817935606,1.05998533,2464.8,2464.7,7.66345925]
[1728817936800,1.05998533,2464.9,2464.7,8.18013429]
[1728817937003,1.05998533,2464.9,2464.8,4.42338212]
[1728817937196,1.05998533,2464.9,2464.8,7.14903946]
[1728817939302,1.05998533,2464.9,2464.8,7.14855569]
[1728817939511,1.05998533,2464.9,2464.8,5.98671053]
[1728817939808,1.05998533,2464.9,2464.8,3.66301173]
[1728817939998,1.05998533,2464.9,2464.8,7.14857806]
[1728817940807,1.05998533,2464.9,2464.8,7.14856986]
[1728817941007,1.05998533,2464.9,2464.8,6.84284271]
[1728817941710,1.05998533,2464.9,2464.8,3.35728458]
[1728817942006,1.05998533,2464.9,2464.8,3.66300599]
[1728817943015,1.05998533,2464.9,2464.8,7.14834692]
[1728817943205,1.05998533,2464.9,2464.8,7.1483396]
[1728817943502,1.05998533,2464.9,2464.8,3.66299867]
[1728817945103,1.05998533,2464.9,2464.8,3.35727726]
[1728817946412,1.05998533,2464.9,2464.8,3.66292426]
[1728817946812,1.05998533,2464.9,2464.8,3.03936843]
[1728817947012,1.05998533,2464.9,2464.8,3.66286953]
[1728817948019,1.05998533,2464.9,2464.8,3.35721998]
[1728817948214,1.44808533,2464.9,2464.8,2.95551998]
[1728817948518,1.44808533,2464.9,2464.8,1.98689404]
[1728817948519,0.3881,2464.9,2464.8,1.98689404]
[1728817948721,10.4449,2464.9,2464.7,2.13024228]
[1728817949021,4.0568,2464.8,2464.7,2.13024228]
[1728817949512,10.0568,2464.8,2464.7,2.13024228]
[1728817951814,4.0568,2464.8,2464.7,2.13024228]
[1728817952010,4.4763,2464.8,2464.7,2.13024228]
[1728817952715,4.4771,2464.8,2464.7,2.13024228]
[1728817953117,0.4195,2464.8,2464.7,2.13024228]
[1728817953315,0.4195,2464.8,2464.6,1.59669903]
[1728817953316,2.00841869,2464.8,2464.6,1.59669903]
[1728817953521,1.05927913,2464.7,2464.6,1.59669903]
[1728817954312,1.05927913,2464.7,2464.6,2.42200659]
[1728817954916,1.05927913,2464.7,2464.6,1.78764525]
[1728817955810,1.05927913,2464.7,2464.6,1.59669903]
[1728817956916,1.05927913,2464.7,2464.5,2.01179903]
[1728817957113,0.412,2464.6,2464.5,2.01179903]
[1728817957315,0.412,2464.6,2464.5,2.83708538]
[1728817957911,0.412,2464.6,2464.5,2.83707965]
[1728817958716,0.412,2464.6,2464.5,2.83707343]
[1728817958918,1.05927913,2464.7,2464.5,2.83707343]
[1728817959121,1.05927913,2464.7,2464.5,2.41119903]
[1728817963827,1.05927913,2464.7,2464.5,2.01179903]
[1728817967731,1.05927913,2464.6,2464.5,0.4151]
[1728817967926,1.58891869,2464.6,2464.4,0.41]
[1728817968226,5.19561869,2464.5,2464.3,0.7728]
[1728817968422,1.05854439,2464.4,2464.3,0.7728]
[1728817970825,4.4017,2464.5,2464.3,0.7728]
[1728817970826,5.46024439,2464.5,2464.3,0.7728]
[1728817976933,2.25244439,2464.5,2464.3,0.7728]
[1728817977433,5.46024439,2464.5,2464.3,0.7728]
[1728817978028,1.05854439,2464.4,2464.3,0.7728]
[1728817979641,1.05854439,2464.4,2464.1,1.45144494]
[1728817979642,5.11614439,2464.4,2464.1,1.45144494]
[1728817979823,1.05854439,2464.4,2464.1,1.45144494]
[1728817980024,1.05854439,2464.4,2464.1,0.3885]
[1728817984136,4.26634439,2464.4,2464.1,0.3885]
[1728817985932,1.05854439,2464.3,2464.1,0.3885]
[1728817986740,4.4649,2464.2,2464.1,0.3885]
[1728817986935,4.4649,2464.2,2464.0,0.8014]
[1728817987236,0.4065,2464.2,2464.0,0.8014]
[1728817987538,0.7949,2464.2,2464.0,0.8014]
[1728817987731,1.85344439,2464.2,2464.0,0.8014]
[1728817988233,1.05854439,2464.3,2464.0,0.8014]
[1728818003937,3.6275,2464.4,2464.0,0.8014]
[1728818006241,1.05768049,2464.3,2464.0,1.86455248]
[1728818008242,3.2078,2464.2,2464.0,1.86455248]
[1728818009046,3.2078,2464.2,2464.1,5.21363318]
[1728818009351,3.2078,2464.2,2464.1,7.63241767]
[1728818010553,3.2078,2464.2,2464.1,6.03768894]
[1728818011649,3.2078,2464.2,2464.1,1.97928894]
[1728818012050,3.2078,2464.2,2464.1,6.03768894]
[1728818012747,3.2078,2464.2,2464.1,5.72120412]
[1728818012949,3.2078,2464.2,2464.1,1.47179053]
[1728818013147,1.05768049,2464.4,2464.1,5.53019053]
[1728818013358,1.05768049,2464.4,2464.3,1.06400586]
[1728818013359,4.26548049,2464.4,2464.3,1.06400586]
[1728818013954,4.26548049,2464.4,2464.3,3.01684816]
[1728818014151,4.26548049,2464.4,2464.3,1.9528423]
[1728818014547,4.26548049,2464.4,2464.3,3.01706896]
[1728818019854,4.26548049,2464.4,2464.3,1.9528423]
[1728818020053,3.2078,2464.4,2464.3,3.73854913]
[1728818020354,3.2078,2464.4,2464.3,3.86543649]
[1728818020757,3.2078,2464.4,2464.3,3.73854913]
[1728818020948,3.2078,2464.4,2464.3,3.54885109]
[1728818021144,3.2078,2464.4,2464.3,1.9528423]
[1728818021344,4.26548049,2464.4,2464.3,3.01695093]
[1728818021844,8.32308049,2464.4,2464.3,1.06410863]
[1728818022048,8.32308049,2464.4,2464.2,1.06410863]
[1728818022049,8.85192074,2464.4,2464.2,1.06410863]
[1728818022250,1.05891746,2464.3,2464.2,1.48580863]
[1728818022551,1.05891746,2464.3,2464.2,2.64179112]
[1728818026659,1.05891746,2464.3,2464.2,2.64182627]
[1728818031467,1.05891746,2464.3,2464.2,2.22012627]
[1728818031770,1.58652074,2464.3,2464.1,1.06410863]
[1728818031964,1.58652074,2464.2,2464.0,1.48270863]
[1728818032160,1.05876194,2464.1,2464.0,1.48270863]
[1728818032361,1.05876194,2464.1,2464.0,2.63875037]
[1728818035982,1.05876194,2464.1,2464.0,2.63875807]
[1728818036666,1.05876194,2464.1,2464.0,1.48270863]
[1728818036667,1.48146194,2464.1,2464.0,1.48270863]
[1728818036975,1.48146194,2464.1,2464.0,1.06410863]
[1728818039683,2.00922074,2464.1,2463.9,1.46880863]
[1728818039878,1.05870658,2464.0,2463.9,1.46880863]
[1728818042880,1.05870658,2464.1,2463.9,2.62475038]
[1728818043080,1.05870658,2464.1,2464.0,1.06410863]
[1728818043381,1.05870658,2464.1,2464.0,1.47550863]
[1728818043779,4.26650658,2464.2,2464.0,2.63141643]
[1728818043980,4.26650658,2464.2,2464.0,1.47550863]
[1728818044578,1.05870658,2464.2,2464.0,1.47550863]
[1728818044783,3.2078,2464.1,2464.0,1.47550863]
[1728818045101,3.2078,2464.1,2464.0,2.63142331]
[1728818045986,4.26650658,2464.1,2464.0,1.47550863]
[1728818046181,3.2078,2464.1,2464.0,2.6314451]
[1728818047087,4.26650658,2464.1,2464.0,1.47550863]
[1728818049076,4.26650658,2464.1,2464.0,0.4114]
[1728818049689,1.05870658,2464.1,2464.0,0.4114]
[1728818049986,4.26650658,2464.1,2464.0,0.4114]
[1728818050582,1.05870658,2464.1,2464.0,0.4114]
[1728818050783,4.26650658,2464.1,2464.0,0.4114]
[1728818051382,1.05870658,2464.1,2464.0,0.4114]
[1728818051583,4.26650658,2464.1,2464.0,0.4114]
[1728818052888,1.05870658,2464.1,2464.0,0.4114]
[1728818053186,4.26650658,2464.1,2464.0,0.4114]
[1728818054588,4.79432074,2464.1,2464.0,0.4114]
[1728818057293,4.79432074,2464.1,2463.9,0.4047]
[1728818057493,4.79432074,2464.1,2463.7,1.59600879]
[1728818057494,1.58652074,2464.0,2463.7,1.06410863]
[1728818057691,1.47555714,2463.9,2463.7,1.06410863]
[1728818057884,1.05765714,2463.8,2463.6,1.06410863]
[1728818058191,4.26545714,2463.7,2463.5,2.29380863]
[1728818058793,4.26545714,2463.7,2463.5,1.2297]
[1728818058794,1.05765714,2463.6,2463.5,1.2297]
[1728818059389,4.26545714,2463.7,2463.5,1.2297]
[1728818061196,4.0592,2463.6,2463.3,1.06410863]
[1728818061489,1.05765714,2463.5,2463.2,0.3912]
[1728818061690,1.45585714,2463.5,2463.2,0.3912]
[1728818061898,1.05765714,2463.4,2463.2,0.3912]
[1728818062190,1.45585714,2463.5,2463.2,0.3912]
[1728818062496,1.45585714,2463.5,2463.1,1.06410863]
[1728818062698,1.45585714,2463.5,2463.1,1.48290863]
[1728818062890,1.45585714,2463.5,2463.1,0.4188]
[1728818063397,0.3982,2463.5,2463.1,0.4188]
[1728818064593,3.2078,2463.2,2463.1,0.4188]
[1728818065093,3.2078,2463.2,2462.9,1.06410863]
[1728818065400,3.2078,2463.2,2462.7,2.27300863]
[1728818065695,3.2078,2462.8,2462.7,2.27300863]
[1728818066292,3.1078,2462.8,2462.7,2.27300863]
[1728818066599,3.0078,2462.8,2462.7,1.2089]
[1728818068994,0.3848,2463.2,2462.7,1.2089]
[1728818069196,3.2078,2462.8,2462.7,1.2089]
[1728818070401,0.3848,2463.2,2462.7,1.2089]
[1728818070402,3.2078,2463.1,2462.7,1.2089]
[1728818071797,0.4228,2463.0,2462.7,1.2089]
[1728818072203,3.2078,2462.9,2462.7,1.2089]
[1728818072900,0.4228,2463.0,2462.7,1.2089]
[1728818073294,3.2078,2462.9,2462.7,1.2089]
[1728818083002,1.3004,2463.3,2462.7,1.2089]
[1728818083306,3.2078,2462.8,2462.7,1.2089]
[1728818091000,3.2078,2462.8,2462.2,3.2078]
[1728818091217,3.2078,2462.8,2462.3,1.2201]
[1728818098414,3.2078,2462.8,2462.3,2.28420863]
[1728818100320,3.2078,2462.8,2462.4,1.06410863]
[1728818100519,3.2078,2462.8,2462.3,2.28420863]
[1728818101018,3.2078,2462.8,2462.4,1.06410863]
[1728818103318,3.2078,2462.8,2462.5,1.06410863]
[1728818103514,3.2078,2462.8,2462.6,0.7873]
[1728818103722,3.2078,2462.8,2462.6,1.185]
[1728818105325,3.2078,2462.8,2462.6,2.24910863]
[1728818106118,0.4143,2462.7,2462.6,1.185]
[1728818106318,0.4143,2462.7,2462.6,1.06410863]
[1728818106522,1.47195714,2462.7,2462.4,1.06410863]
[1728818106721,3.2078,2462.5,2462.4,1.46930863]
[1728818107318,3.2078,2462.5,2462.4,2.62555183]
[1728818107518,3.2078,2462.5,2462.4,1.46930863]
[1728818108319,3.2078,2462.5,2462.4,2.62567853]
[1728818109320,3.2078,2462.5,2462.4,3.15757869]
[1728818109728,3.2078,2462.5,2462.4,2.62628045]
[1728818110321,3.2078,2462.5,2462.4,3.15757869]
[1728818113529,3.2078,2462.5,2462.4,2.75237869]
[1728818115630,7.6744,2462.5,2462.3,1.06502404]
[1728818115924,2.39712074,2462.4,2462.2,1.06502404]
[1728818116132,1.05768891,2462.3,2462.2,1.06502404]
[1728818117027,1.05768891,2462.3,2462.2,2.30902404]
[1728818117225,1.46478891,2462.4,2462.2,2.30902404]
[1728818117429,1.05768891,2462.3,2462.2,2.30902404]
[1728818118227,1.46478891,2462.4,2462.2,2.30902404]
[1728818120236,1.46478891,2462.4,2462.2,1.244]
[1728818121633,1.46478891,2462.4,2462.2,0.8293]
[1728818121831,1.88928891,2462.4,2462.2,0.8293]
[1728818124137,1.05768891,2462.3,2462.2,0.8293]
[1728818124325,1.88928891,2462.4,2462.2,0.8293]
[1728818124526,5.64812074,2462.3,2461.9,1.06502404]
[1728818124722,3.2078,2462.0,2461.8,1.06502404]
[1728818124930,3.2078,2462.0,2461.8,1.45382404]
[1728818125123,3.2078,2462.0,2461.8,2.26282404]
[1728818125928,3.2078,2462.0,2461.7,1.06502404]
[1728818126127,0.4019,2461.9,2461.7,1.06502404]
[1728818126330,0.4019,2461.9,2461.6,1.98550879]
[1728818126331,0.4019,2461.9,2461.6,1.45452404]
[1728818127240,3.2078,2462.0,2461.6,1.45452404]
[1728818129936,3.2078,2462.0,2461.7,1.06502404]
[1728818130136,3.2078,2462.0,2461.8,0.4031]
[1728818130438,3.2078,2462.0,2461.9,0.4192]
[1728818134748,3.2078,2462.0,2461.6,0.3895]
[1728818134749,7.2694,2462.0,2461.6,0.3895]
[1728818135044,0.3885,2461.9,2461.6,0.8017]
[1728818136342,3.2078,2461.7,2461.6,0.8017]
[1728818154048,1.48382746,2462.0,2461.6,0.8017]
[1728818154245,3.2078,2461.8,2461.6,0.8017]
[1728818161456,3.2078,2461.8,2461.7,4.0624]
[1728818161658,3.2078,2461.8,2461.7,5.12742404]
[1728818162164,3.2078,2461.8,2461.7,6.28293171]
[1728818162762,1.05652746,2462.1,2461.7,5.21790767]
[1728818162763,3.2078,2462.1,2461.7,5.21790767]
[1728818162965,3.2078,2462.1,2461.9,1.06386031]
[1728818163158,5.8508482,2462.5,2462.0,2.39697919]
[1728818163359,3.2078,2462.5,2462.2,1.063843]
[1728818163859,3.2078,2462.5,2462.3,1.063843]
[1728818164060,3.2078,2462.5,2462.4,0.8393]
[1728818164358,3.2078,2462.5,2462.4,1.2415]
[1728818164868,4.0247,2462.5,2462.1,2.283143]
[1728818165061,5.08122746,2462.5,2462.1,2.283143]
[1728818165261,5.08122746,2462.5,2462.2,1.063843]
[1728818165262,4.0247,2462.5,2462.2,1.063843]
[1728818166166,3.6126,2462.5,2462.2,1.063843]
[1728818166665,3.2078,2462.5,2462.2,1.063843]
[1728818167466,3.2078,2462.5,2462.1,2.283143]
[1728818167662,0.4202,2462.4,2462.1,1.2193]
[1728818167968,3.2078,2462.2,2461.9,1.063843]
[1728818168167,3.2078,2462.2,2461.9,2.296243]
[1728818168960,3.2078,2462.2,2461.9,1.2324]
[1728818168961,4.26432746,2462.2,2461.9,1.2324]
[1728818169459,4.68052746,2462.2,2461.9,1.2324]
[1728818171175,4.68052746,2462.2,2461.7,1.885843]
[1728818172172,4.68052746,2462.2,2461.8,1.063843]
[1728818172376,3.624,2462.2,2461.8,1.063843]
[1728818175064,4.68052746,2462.2,2461.8,1.063843]
[1728818176072,3.2078,2462.1,2461.8,1.063843]
[1728818176475,3.6266,2462.1,2461.8,1.063843]
[1728818176670,3.6266,2462.1,2461.7,1.885843]
[1728818176876,0.41,2462.0,2461.7,1.885843]
[1728818177065,0.41,2462.0,2461.7,0.822]
[1728818177470,0.41,2462.0,2461.7,1.885843]
[1728818178172,0.41,2462.0,2461.7,0.822]
[1728818180585,0.41,2462.0,2461.7,1.885843]
[1728818180775,0.41,2462.0,2461.7,0.822]
[1728818181166,0.41,2462.0,2461.7,1.885843]
[1728818182481,0.41,2462.0,2461.7,0.822]
[1728818182879,3.2078,2461.8,2461.7,0.822]
[1728818184676,3.2078,2461.8,2461.6,1.465843]
[1728818184873,3.2078,2461.8,2461.6,0.402]
[1728818185078,3.6362,2461.8,2461.6,0.402]
[1728818185382,3.6362,2461.8,2461.6,1.465843]
[1728818185877,3.6362,2461.8,2461.6,0.402]
[1728818186479,3.6362,2461.8,2461.6,1.465843]
[1728818186987,3.2078,2461.8,2461.6,1.465843]
[1728818192800,2.6430482,2462.2,2461.7,8.42914046]
[1728818192999,1.05652746,2462.5,2462.1,3.2078]
[1728818193192,1.58652074,2462.6,2462.2,1.06373063]
[1728818193193,1.05652746,2462.6,2462.2,1.06373063]